[Event "Late-Titled-Tuesday-Blitz-May-28-2024"]
[Site "Chess.com"]
[Date "2024.05.28"]
[Round "2"]
[White "cassoulet"]
[Black "Nekoo04"]
[Result "0-1"]
[WhiteElo "2720"]
[BlackElo "2430"]
[TimeControl "180+1"]
[EndTime "14:18:31 PDT"]
[Termination "Nekoo04 won by checkmate"]

1. e4 {[%clk 0:02:47.2]} 1... c5 {[%clk 0:02:56.7]} 2. Nf3 {[%clk 0:02:47.1]}
2... d6 {[%clk 0:02:56.9]} 3. d4 {[%clk 0:02:47.2]} 3... cxd4 {[%clk 0:02:57.5]}
4. Nxd4 {[%clk 0:02:47.8]} 4... Nf6 {[%clk 0:02:58.1]} 5. Nc3 {[%clk 0:02:48.3]}
5... Nc6 {[%clk 0:02:58.8]} 6. g3 {[%clk 0:02:46.4]} 6... g6 {[%clk 0:02:57.2]}
7. Bg2 {[%clk 0:02:46.3]} 7... Nxd4 {[%clk 0:02:57.7]} 8. Qxd4 {[%clk
0:02:45.9]} 8... Bg7 {[%clk 0:02:58.6]} 9. O-O {[%clk 0:02:44.6]} 9... O-O
{[%clk 0:02:58.5]} 10. Qd3 {[%clk 0:02:43.5]} 10... Be6 {[%clk 0:02:49]} 11. Bg5
{[%clk 0:02:37.3]} 11... Rc8 {[%clk 0:02:47.1]} 12. Nd5 {[%clk 0:02:36.5]} 12...
Nxd5 {[%clk 0:02:41.5]} 13. exd5 {[%clk 0:02:36.4]} 13... Bf5 {[%clk 0:02:42]}
14. Qe3 {[%clk 0:02:36.4]} 14... f6 {[%clk 0:02:15.7]} 15. Bh6 {[%clk
0:02:36.4]} 15... Bxh6 {[%clk 0:02:12.9]} 16. Qxh6 {[%clk 0:02:37.3]} 16... Rxc2
{[%clk 0:02:13.3]} 17. Qe3 {[%clk 0:02:35.7]} 17... Rxb2 {[%clk 0:02:08.2]} 18.
Qxa7 {[%clk 0:02:33.6]} 18... Qb6 {[%clk 0:02:06.5]} 19. Qa3 {[%clk 0:02:33.2]}
19... Rc8 {[%clk 0:01:57.8]} 20. Rae1 {[%clk 0:02:32.7]} 20... Kf7 {[%clk
0:01:45.1]} 21. h3 {[%clk 0:02:26.8]} 21... Rcc2 {[%clk 0:01:41.8]} 22. Qf3
{[%clk 0:02:20.9]} 22... Qd4 {[%clk 0:00:50.7]} 23. g4 {[%clk 0:02:00.1]} 23...
Bd3 {[%clk 0:00:46.5]} 24. Rd1 {[%clk 0:01:59.9]} 24... Rd2 {[%clk 0:00:44.6]}
25. Rxd2 {[%clk 0:01:53.9]} 25... Rxd2 {[%clk 0:00:45.5]} 26. Re1 {[%clk
0:01:52.8]} 26... Bc4 {[%clk 0:00:32.1]} 27. Qg3 {[%clk 0:01:26.2]} 27... Bxd5
{[%clk 0:00:23.7]} 28. Bxd5+ {[%clk 0:01:27.1]} 28... Qxd5 {[%clk 0:00:24.1]}
29. Qe3 {[%clk 0:01:27.8]} 29... e5 {[%clk 0:00:18.2]} 30. Qb6 {[%clk
0:01:25.4]} 30... Kg7 {[%clk 0:00:08.8]} 31. Qc7+ {[%clk 0:01:24.5]} 31... Kh6
{[%clk 0:00:08.8]} 32. Qd8 {[%clk 0:01:24.1]} 32... Qf3 {[%clk 0:00:06.4]} 33.
Qb6 {[%clk 0:01:20.2]} 33... Kg5 {[%clk 0:00:04.9]} 34. Qe3+ {[%clk 0:01:01.4]}
34... Qxe3 {[%clk 0:00:04.7]} 35. Rxe3 {[%clk 0:01:02.3]} 35... Rxa2 {[%clk
0:00:05.3]} 36. Rb3 {[%clk 0:01:02.7]} 36... Kh4 {[%clk 0:00:04.1]} 37. Kg2
{[%clk 0:01:02.4]} 37... h5 {[%clk 0:00:02.8]} 38. gxh5 {[%clk 0:01:01.8]} 38...
Kxh5 {[%clk 0:00:02.7]} 39. Rxb7 {[%clk 0:01:02.7]} 39... d5 {[%clk 0:00:02.7]}
40. Rf7 {[%clk 0:01:01.9]} 40... Kg5 {[%clk 0:00:03]} 41. Kg3 {[%clk 0:01:01.6]}
41... Ra3+ {[%clk 0:00:02.5]} 42. Kg2 {[%clk 0:01:02]} 42... d4 {[%clk
0:00:02.8]} 43. Rd7 {[%clk 0:01:01.9]} 43... f5 {[%clk 0:00:02.7]} 44. Rd6
{[%clk 0:01:02.8]} 44... e4 {[%clk 0:00:02.7]} 45. Rd5 {[%clk 0:01:03.7]} 45...
d3 {[%clk 0:00:03]} 46. Kg3 {[%clk 0:01:03.5]} 46... Kf6 {[%clk 0:00:01.9]} 47.
h4 {[%clk 0:01:02.7]} 47... Ke6 {[%clk 0:00:01.7]} 48. Rd8 {[%clk 0:01:03.3]}
48... Ra2 {[%clk 0:00:02.4]} 49. Rd4 {[%clk 0:01:00.1]} 49... Ke5 {[%clk
0:00:02.6]} 50. Rd8 {[%clk 0:01:00.3]} 50... f4+ {[%clk 0:00:03.5]} 51. Kg4
{[%clk 0:00:59.7]} 51... Rxf2 {[%clk 0:00:03.2]} 52. Re8+ {[%clk 0:01:00.6]}
52... Kd4 {[%clk 0:00:03.6]} 53. Rd8+ {[%clk 0:01:01.5]} 53... Ke3 {[%clk
0:00:04.5]} 54. Re8 {[%clk 0:01:00.6]} 54... Rg2+ {[%clk 0:00:04.8]} 55. Kh3
{[%clk 0:01:01.1]} 55... Rg3+ {[%clk 0:00:05.5]} 56. Kh2 {[%clk 0:01:01.7]}
56... d2 {[%clk 0:00:06.1]} 57. Rd8 {[%clk 0:01:01.7]} 57... Ke2 {[%clk
0:00:06.7]} 58. Rd4 {[%clk 0:01:01.2]} 58... e3 {[%clk 0:00:07]} 59. Rxf4 {[%clk
0:01:01.3]} 59... Rf3 {[%clk 0:00:07.5]} 60. Rg4 {[%clk 0:01:01.2]} 60... d1=Q
{[%clk 0:00:07.6]} 61. Rg2+ {[%clk 0:01:01.5]} 61... Rf2 {[%clk 0:00:08.5]} 62.
h5 {[%clk 0:01:01.5]} 62... Rxg2+ {[%clk 0:00:08.7]} 63. Kxg2 {[%clk 0:01:02.4]}
63... Qf1+ {[%clk 0:00:09.4]} 64. Kg3 {[%clk 0:01:03]} 64... Qf2+ {[%clk
0:00:09.7]} 65. Kg4 {[%clk 0:01:03.2]} 65... gxh5+ {[%clk 0:00:10.1]} 66. Kxh5
{[%clk 0:01:04.1]} 66... Kf3 {[%clk 0:00:10.7]} 67. Kg5 {[%clk 0:01:05]} 67...
e2 {[%clk 0:00:11.6]} 68. Kg6 {[%clk 0:01:05.9]} 68... e1=Q {[%clk 0:00:12.5]}
69. Kh6 {[%clk 0:01:06.8]} 69... Qeg1 {[%clk 0:00:13]} 70. Kh7 {[%clk
0:01:07.1]} 70... Qfh2# {[%clk 0:00:13.5]} 0-1

[Event "Late-Titled-Tuesday-Blitz-May-28-2024"]
[Site "Chess.com"]
[Date "2024.05.28"]
[Round "2"]
[White "Thjop"]
[Black "Polish_fighter3000"]
[Result "0-1"]
[WhiteElo "2641"]
[BlackElo "3119"]
[TimeControl "180+1"]
[EndTime "14:18:33 PDT"]
[Termination "Polish_fighter3000 won by resignation"]

1. e4 {[%clk 0:03:00.9]} 1... e6 {[%clk 0:03:00.9]} 2. d4 {[%clk 0:03:00.6]}
2... d5 {[%clk 0:03:01.1]} 3. Nd2 {[%clk 0:03:00.8]} 3... Be7 {[%clk 0:02:58.7]}
4. Bd3 {[%clk 0:02:59.6]} 4... c5 {[%clk 0:02:57]} 5. dxc5 {[%clk 0:02:59.8]}
5... Nf6 {[%clk 0:02:57.1]} 6. Qe2 {[%clk 0:02:59.9]} 6... O-O {[%clk
0:02:52.1]} 7. Ngf3 {[%clk 0:02:59.5]} 7... a5 {[%clk 0:02:45.5]} 8. c4 {[%clk
0:02:58.9]} 8... Na6 {[%clk 0:02:36.5]} 9. e5 {[%clk 0:02:48]} 9... Nd7 {[%clk
0:02:23.4]} 10. cxd5 {[%clk 0:02:47.8]} 10... exd5 {[%clk 0:02:24.3]} 11. O-O
{[%clk 0:02:47.4]} 11... Nb4 {[%clk 0:02:12.1]} 12. Bb1 {[%clk 0:02:37.8]} 12...
b6 {[%clk 0:02:11.7]} 13. Rd1 {[%clk 0:02:22]} 13... Ba6 {[%clk 0:02:00.4]} 14.
Qe3 {[%clk 0:02:19.7]} 14... bxc5 {[%clk 0:01:53.5]} 15. a3 {[%clk 0:02:10.2]}
15... Nc6 {[%clk 0:01:53]} 16. Nf1 {[%clk 0:02:04.1]} 16... Nb6 {[%clk
0:01:41.3]} 17. Ng3 {[%clk 0:02:03.6]} 17... Re8 {[%clk 0:01:35.4]} 18. Nf5
{[%clk 0:02:00]} 18... Bf8 {[%clk 0:01:34.9]} 19. Qf4 {[%clk 0:01:47.9]} 19...
Bc8 {[%clk 0:00:19.5]} 20. Ng5 {[%clk 0:00:49.5]} 20... Nxe5 {[%clk 0:00:18]}
21. Ne3 {[%clk 0:00:16.3]} 21... g6 {[%clk 0:00:14.2]} 22. h4 {[%clk 0:00:13]}
22... Ra7 {[%clk 0:00:10.5]} 23. Bd2 {[%clk 0:00:12.3]} 23... Bg7 {[%clk
0:00:07.9]} 24. Bc3 {[%clk 0:00:11.6]} 24... d4 {[%clk 0:00:07.7]} 25. Be1
{[%clk 0:00:09.2]} 25... Qf6 {[%clk 0:00:05.3]} 26. Qxf6 {[%clk 0:00:08.2]}
26... Bxf6 {[%clk 0:00:06.2]} 27. Nc2 {[%clk 0:00:07.5]} 27... Bxg5 {[%clk
0:00:04.1]} 28. hxg5 {[%clk 0:00:08.2]} 28... Bf5 {[%clk 0:00:04.3]} 29. a4
{[%clk 0:00:06]} 29... Nec4 {[%clk 0:00:03.3]} 30. b3 {[%clk 0:00:05.3]} 30...
Nb2 {[%clk 0:00:03.7]} 31. Rc1 {[%clk 0:00:05.8]} 31... Nd3 {[%clk 0:00:03.4]}
32. Rd1 {[%clk 0:00:06.3]} 32... Nb2 {[%clk 0:00:02.2]} 33. Rc1 {[%clk
0:00:06.6]} 33... Nd3 {[%clk 0:00:02.6]} 34. Rd1 {[%clk 0:00:07.1]} 34... Nxe1
{[%clk 0:00:03.1]} 35. Rxe1 {[%clk 0:00:07.1]} 35... Rae7 {[%clk 0:00:03]} 36.
Rxe7 {[%clk 0:00:06.6]} 36... Rxe7 {[%clk 0:00:03.9]} 37. Kf1 {[%clk 0:00:07.1]}
37... Bd3+ {[%clk 0:00:03.6]} 38. Kg1 {[%clk 0:00:06.9]} 38... Re2 {[%clk
0:00:04.3]} 39. Kh2 {[%clk 0:00:07.8]} 39... Bxc2 {[%clk 0:00:04.3]} 40. Bxc2
{[%clk 0:00:08.5]} 40... Rxc2 {[%clk 0:00:05.1]} 41. Re1 {[%clk 0:00:09]} 41...
d3 {[%clk 0:00:05.3]} 42. Re8+ {[%clk 0:00:07.3]} 42... Kg7 {[%clk 0:00:05.9]}
43. Rd8 {[%clk 0:00:08.2]} 43... d2 {[%clk 0:00:06.1]} 44. Rd6 {[%clk
0:00:08.6]} 44... c4 {[%clk 0:00:06.2]} 45. Kg3 {[%clk 0:00:09.2]} 45... cxb3
{[%clk 0:00:05.9]} 0-1

[Event "Late-Titled-Tuesday-Blitz-May-28-2024"]
[Site "Chess.com"]
[Date "2024.05.28"]
[Round "2"]
[White "only_strong_moves"]
[Black "ural58"]
[Result "1-0"]
[WhiteElo "2713"]
[BlackElo "2412"]
[TimeControl "180+1"]
[EndTime "14:18:33 PDT"]
[Termination "only_strong_moves won by resignation"]

1. h3 {[%clk 0:02:59.2]} 1... b6 {[%clk 0:02:58]} 2. a4 {[%clk 0:02:58.1]} 2...
Bb7 {[%clk 0:02:57.1]} 3. Nf3 {[%clk 0:02:58.8]} 3... g6 {[%clk 0:02:54.8]} 4.
g3 {[%clk 0:02:59.3]} 4... Bg7 {[%clk 0:02:54.7]} 5. Bg2 {[%clk 0:02:59.9]} 5...
e5 {[%clk 0:02:55]} 6. O-O {[%clk 0:03:00.4]} 6... Ne7 {[%clk 0:02:54.6]} 7. d3
{[%clk 0:03:00.7]} 7... O-O {[%clk 0:02:54.4]} 8. a5 {[%clk 0:03:01]} 8... d5
{[%clk 0:02:51.6]} 9. Nbd2 {[%clk 0:02:59.8]} 9... Nd7 {[%clk 0:02:51.3]} 10. c4
{[%clk 0:02:55.4]} 10... c5 {[%clk 0:02:49.9]} 11. cxd5 {[%clk 0:02:52.7]} 11...
Bxd5 {[%clk 0:02:46.9]} 12. Nc4 {[%clk 0:02:45.9]} 12... Nc6 {[%clk 0:02:46.1]}
13. Ne3 {[%clk 0:02:38.7]} 13... Bxf3 {[%clk 0:02:30.8]} 14. Bxf3 {[%clk
0:02:38]} 14... Nxa5 {[%clk 0:02:30.5]} 15. Bxa8 {[%clk 0:02:37.3]} 15... Qxa8
{[%clk 0:02:30.7]} 16. Bd2 {[%clk 0:02:37.9]} 16... Nc6 {[%clk 0:02:30.4]} 17.
Nc4 {[%clk 0:02:30.5]} 17... Nd4 {[%clk 0:02:27.4]} 18. Bc3 {[%clk 0:02:28.1]}
18... Qb7 {[%clk 0:02:15.4]} 19. Bxd4 {[%clk 0:02:27.9]} 19... exd4 {[%clk
0:02:14.6]} 20. e3 {[%clk 0:02:27.3]} 20... dxe3 {[%clk 0:02:08.8]} 21. fxe3
{[%clk 0:02:26.4]} 21... b5 {[%clk 0:02:06.4]} 22. Na5 {[%clk 0:02:23.7]} 22...
Qc7 {[%clk 0:02:06.3]} 23. Qf3 {[%clk 0:02:22.6]} 23... Bxb2 {[%clk 0:02:05.3]}
24. Ra2 {[%clk 0:02:23.1]} 24... Bg7 {[%clk 0:02:04.3]} 25. Nc6 {[%clk
0:02:22.7]} 25... Ne5 {[%clk 0:01:57.4]} 26. Nxe5 {[%clk 0:02:17.2]} 26... Bxe5
{[%clk 0:01:57.3]} 27. Kg2 {[%clk 0:02:17.8]} 27... a5 {[%clk 0:01:55.6]} 28.
Qd5 {[%clk 0:02:17.7]} 28... Bxg3 {[%clk 0:01:52.8]} 29. Rc2 {[%clk 0:02:11.7]}
29... Bh4 {[%clk 0:01:46.2]} 30. Rf4 {[%clk 0:02:08]} 30... Be7 {[%clk
0:01:45.1]} 31. Rcf2 {[%clk 0:02:07.3]} 31... Bd8 {[%clk 0:01:35.7]} 32. Rc2
{[%clk 0:01:59.4]} 32... c4 {[%clk 0:01:35.7]} 33. dxc4 {[%clk 0:01:58.7]} 33...
b4 {[%clk 0:01:36.3]} 34. c5 {[%clk 0:01:55.6]} 34... Qb8 {[%clk 0:01:17.6]} 35.
Rcf2 {[%clk 0:01:49.1]} 35... Qc7 {[%clk 0:01:17.2]} 36. c6 {[%clk 0:01:48.5]}
36... Qe7 {[%clk 0:01:10.8]} 37. Rxf7 {[%clk 0:01:22.4]} 37... Rxf7 {[%clk
0:01:06.6]} 38. Rxf7 {[%clk 0:01:22.8]} 38... Qxf7 {[%clk 0:01:04.3]} 39. Qxd8+
{[%clk 0:01:23.4]} 39... Kg7 {[%clk 0:01:02.8]} 40. c7 {[%clk 0:01:13.2]} 40...
Qa2+ {[%clk 0:00:48.6]} 41. Kg3 {[%clk 0:01:11.9]} 41... Qe6 {[%clk 0:00:38.8]}
42. Qd4+ {[%clk 0:00:31]} 42... Kg8 {[%clk 0:00:25.6]} 43. Qc5 {[%clk
0:00:31.1]} 43... Qc8 {[%clk 0:00:22.7]} 44. Qd6 {[%clk 0:00:31.4]} 44... Kg7
{[%clk 0:00:21.9]} 45. Qe7+ {[%clk 0:00:26.3]} 45... Kh6 {[%clk 0:00:20.5]} 46.
Qd8 {[%clk 0:00:20]} 46... Qe6 {[%clk 0:00:19.6]} 47. Qf8+ {[%clk 0:00:20.4]}
47... Kh5 {[%clk 0:00:19.5]} 48. c8=Q {[%clk 0:00:19.5]} 1-0

[Event "Late-Titled-Tuesday-Blitz-May-28-2024"]
[Site "Chess.com"]
[Date "2024.05.28"]
[Round "2"]
[White "Zorbos"]
[Black "Charodej1"]
[Result "1/2-1/2"]
[WhiteElo "2717"]
[BlackElo "2448"]
[TimeControl "180+1"]
[EndTime "14:18:36 PDT"]
[Termination "Game drawn by repetition"]

1. e4 {[%clk 0:02:58.9]} 1... c6 {[%clk 0:02:59.1]} 2. d3 {[%clk 0:02:49.7]}
2... d5 {[%clk 0:02:59.1]} 3. Nf3 {[%clk 0:02:50.2]} 3... dxe4 {[%clk
0:02:58.5]} 4. dxe4 {[%clk 0:02:51.1]} 4... Qxd1+ {[%clk 0:02:58.2]} 5. Kxd1
{[%clk 0:02:52]} 5... Bg4 {[%clk 0:02:54.3]} 6. Nd2 {[%clk 0:02:48]} 6... Nd7
{[%clk 0:02:53.7]} 7. h3 {[%clk 0:02:48]} 7... Bxf3+ {[%clk 0:02:48.4]} 8. Nxf3
{[%clk 0:02:47.8]} 8... e6 {[%clk 0:02:47]} 9. Bd3 {[%clk 0:02:44.5]} 9... Ngf6
{[%clk 0:02:45.4]} 10. Ke2 {[%clk 0:02:44.1]} 10... Bc5 {[%clk 0:02:44.8]} 11.
a3 {[%clk 0:02:36.9]} 11... a5 {[%clk 0:02:42.9]} 12. Bf4 {[%clk 0:02:35.6]}
12... Ke7 {[%clk 0:02:34.3]} 13. g4 {[%clk 0:02:34.3]} 13... Rhd8 {[%clk
0:02:21.2]} 14. e5 {[%clk 0:02:28.4]} 14... Nd5 {[%clk 0:02:20.9]} 15. Bg5+
{[%clk 0:02:28.7]} 15... f6 {[%clk 0:02:20.2]} 16. exf6+ {[%clk 0:02:29.6]}
16... gxf6 {[%clk 0:02:20.9]} 17. Bd2 {[%clk 0:02:30]} 17... Rh8 {[%clk
0:02:13.5]} 18. Rae1 {[%clk 0:02:26.2]} 18... Bd6 {[%clk 0:02:09.9]} 19. Kd1
{[%clk 0:02:22.4]} 19... Bf4 {[%clk 0:02:06.7]} 20. Nd4 {[%clk 0:02:22.1]} 20...
Nc5 {[%clk 0:01:57.4]} 21. Bc4 {[%clk 0:02:00.9]} 21... Bxd2 {[%clk 0:01:48.1]}
22. Kxd2 {[%clk 0:02:00]} 22... Kd7 {[%clk 0:01:39.8]} 23. Kc1 {[%clk 0:01:48]}
23... Rae8 {[%clk 0:01:25.7]} 24. c3 {[%clk 0:01:34.3]} 24... Nf4 {[%clk
0:01:13.8]} 25. Kc2 {[%clk 0:01:32.6]} 25... a4 {[%clk 0:01:13.8]} 26. b4 {[%clk
0:01:30.5]} 26... axb3+ {[%clk 0:01:13.4]} 27. Nxb3 {[%clk 0:01:31.2]} 27...
Nxb3 {[%clk 0:01:11.9]} 28. Bxb3 {[%clk 0:01:30.9]} 28... h5 {[%clk 0:01:06.1]}
29. f3 {[%clk 0:01:18.3]} 29... Kc7 {[%clk 0:00:44.6]} 30. Rd1 {[%clk
0:01:16.6]} 30... hxg4 {[%clk 0:00:36.8]} 31. hxg4 {[%clk 0:01:15.7]} 31... Nd5
{[%clk 0:00:37.4]} 32. Kd2 {[%clk 0:01:10.5]} 32... b5 {[%clk 0:00:33.9]} 33.
Rde1 {[%clk 0:01:08.3]} 33... Kd6 {[%clk 0:00:33.9]} 34. a4 {[%clk 0:01:00.6]}
34... bxa4 {[%clk 0:00:33.4]} 35. Bxa4 {[%clk 0:01:01.5]} 35... Ra8 {[%clk
0:00:32.6]} 36. Bb3 {[%clk 0:01:01.4]} 36... Rab8 {[%clk 0:00:27.1]} 37. Kc2
{[%clk 0:00:54]} 37... e5 {[%clk 0:00:24.5]} 38. Rd1 {[%clk 0:00:43]} 38... Kc5
{[%clk 0:00:21.5]} 39. Rde1 {[%clk 0:00:39]} 39... Ne3+ {[%clk 0:00:18]} 40. Kb2
{[%clk 0:00:32.4]} 40... Nc4+ {[%clk 0:00:16.9]} 41. Kc2 {[%clk 0:00:32.9]}
41... Ne3+ {[%clk 0:00:16.6]} 42. Kd3 {[%clk 0:00:22.5]} 42... Rxh1 {[%clk
0:00:15.2]} 43. Rxh1 {[%clk 0:00:23.4]} 43... Rxb3 {[%clk 0:00:14.9]} 44. Kxe3
{[%clk 0:00:23.8]} 44... Rxc3+ {[%clk 0:00:15.4]} 45. Ke4 {[%clk 0:00:23.8]}
45... Rc4+ {[%clk 0:00:15.8]} 46. Ke3 {[%clk 0:00:22.7]} 46... Rf4 {[%clk
0:00:16.2]} 47. Rc1+ {[%clk 0:00:22.1]} 47... Kd6 {[%clk 0:00:16.4]} 48. Rd1+
{[%clk 0:00:22.1]} 48... Ke6 {[%clk 0:00:16.5]} 49. Rc1 {[%clk 0:00:22.8]} 49...
Kd6 {[%clk 0:00:17]} 50. Rd1+ {[%clk 0:00:23.3]} 50... Kc7 {[%clk 0:00:16.8]}
51. Rc1 {[%clk 0:00:22.9]} 51... Kb6 {[%clk 0:00:16.8]} 52. Rb1+ {[%clk
0:00:23.5]} 52... Kc7 {[%clk 0:00:17.1]} 53. Rc1 {[%clk 0:00:23.8]} 53... Kb6
{[%clk 0:00:17.4]} 54. Rb1+ {[%clk 0:00:23.6]} 54... Kc7 {[%clk 0:00:17.7]} 55.
Rc1 {[%clk 0:00:23.9]} 1/2-1/2

[Event "Late-Titled-Tuesday-Blitz-May-28-2024"]
[Site "Chess.com"]
[Date "2024.05.28"]
[Round "2"]
[White "LiemLe"]
[Black "Maikrosoft63"]
[Result "1-0"]
[WhiteElo "3042"]
[BlackElo "2607"]
[TimeControl "180+1"]
[EndTime "14:18:37 PDT"]
[Termination "LiemLe won by checkmate"]

1. c4 {[%clk 0:03:00.9]} 1... e6 {[%clk 0:02:57.8]} 2. Nf3 {[%clk 0:02:59]} 2...
Nf6 {[%clk 0:02:57.8]} 3. g3 {[%clk 0:02:55.8]} 3... a6 {[%clk 0:02:57.5]} 4.
Nc3 {[%clk 0:02:52.5]} 4... d5 {[%clk 0:02:51.9]} 5. cxd5 {[%clk 0:02:42.5]}
5... exd5 {[%clk 0:02:52]} 6. d4 {[%clk 0:02:43.2]} 6... Be7 {[%clk 0:02:50]} 7.
Bg2 {[%clk 0:02:43.2]} 7... O-O {[%clk 0:02:50.6]} 8. O-O {[%clk 0:02:43.3]}
8... c6 {[%clk 0:02:51]} 9. Qc2 {[%clk 0:02:35.6]} 9... Nbd7 {[%clk 0:02:48.4]}
10. Bf4 {[%clk 0:02:29]} 10... Re8 {[%clk 0:02:42.7]} 11. Rad1 {[%clk
0:02:27.3]} 11... Nf8 {[%clk 0:02:42.2]} 12. Ne5 {[%clk 0:02:22.1]} 12... Ng6
{[%clk 0:02:40.8]} 13. e3 {[%clk 0:02:21.4]} 13... Bf8 {[%clk 0:02:36.2]} 14. h4
{[%clk 0:02:20.9]} 14... Bd6 {[%clk 0:01:54.6]} 15. Nxg6 {[%clk 0:01:47.6]}
15... hxg6 {[%clk 0:01:55.5]} 16. Rfe1 {[%clk 0:01:48.1]} 16... Bxf4 {[%clk
0:01:50.7]} 17. exf4 {[%clk 0:01:49]} 17... Bf5 {[%clk 0:01:48.7]} 18. Qb3
{[%clk 0:01:48.2]} 18... Qc7 {[%clk 0:01:43]} 19. Na4 {[%clk 0:01:40.7]} 19...
Nd7 {[%clk 0:01:35.7]} 20. Bf3 {[%clk 0:01:32.4]} 20... Qa5 {[%clk 0:01:25.7]}
21. Nc3 {[%clk 0:01:16.4]} 21... Qb6 {[%clk 0:01:18.9]} 22. Qxb6 {[%clk
0:01:15.5]} 22... Nxb6 {[%clk 0:01:19.8]} 23. g4 {[%clk 0:01:15.8]} 23... Bd7
{[%clk 0:01:17.8]} 24. Kg2 {[%clk 0:01:13.7]} 24... a5 {[%clk 0:01:15.4]} 25.
Kg3 {[%clk 0:01:06]} 25... a4 {[%clk 0:01:14.6]} 26. Be2 {[%clk 0:01:04.7]}
26... Kf8 {[%clk 0:01:07.9]} 27. Bd3 {[%clk 0:01:01.9]} 27... Re7 {[%clk
0:00:51.2]} 28. Re5 {[%clk 0:00:59.2]} 28... Rxe5 {[%clk 0:00:20.8]} 29. fxe5
{[%clk 0:01:00.1]} 29... Be6 {[%clk 0:00:20.7]} 30. f4 {[%clk 0:00:57.8]} 30...
Bd7 {[%clk 0:00:16.7]} 31. f5 {[%clk 0:00:55.1]} 31... gxf5 {[%clk 0:00:16.8]}
32. gxf5 {[%clk 0:00:56]} 32... f6 {[%clk 0:00:14.8]} 33. Kf4 {[%clk 0:00:53.9]}
33... Be8 {[%clk 0:00:14.5]} 34. Rh1 {[%clk 0:00:49.7]} 34... Bh5 {[%clk
0:00:14.1]} 35. Re1 {[%clk 0:00:41.7]} 35... Re8 {[%clk 0:00:13.8]} 36. Bc2
{[%clk 0:00:40.4]} 36... fxe5+ {[%clk 0:00:13.3]} 37. Rxe5 {[%clk 0:00:38.7]}
37... Rxe5 {[%clk 0:00:11.6]} 38. dxe5 {[%clk 0:00:39.6]} 38... a3 {[%clk
0:00:10]} 39. b3 {[%clk 0:00:37.4]} 39... d4 {[%clk 0:00:07.2]} 40. Nb1 {[%clk
0:00:37.8]} 40... Nd5+ {[%clk 0:00:07.4]} 41. Kg5 {[%clk 0:00:38.3]} 41... Nb4
{[%clk 0:00:05]} 42. Kxh5 {[%clk 0:00:26.9]} 42... Nxc2 {[%clk 0:00:04.9]} 43.
Kg6 {[%clk 0:00:26.7]} 43... d3 {[%clk 0:00:03.4]} 44. h5 {[%clk 0:00:24.4]}
44... Nd4 {[%clk 0:00:03.5]} 45. f6 {[%clk 0:00:23.1]} 45... gxf6 {[%clk
0:00:03]} 46. exf6 {[%clk 0:00:22.7]} 46... Nxb3 {[%clk 0:00:03.2]} 47. h6
{[%clk 0:00:20.2]} 47... d2 {[%clk 0:00:03.6]} 48. h7 {[%clk 0:00:19.3]} 48...
d1=Q {[%clk 0:00:03.5]} 49. h8=Q# {[%clk 0:00:20.2]} 1-0

[Event "Late-Titled-Tuesday-Blitz-May-28-2024"]
[Site "Chess.com"]
[Date "2024.05.28"]
[Round "2"]
[White "DanylaBagrov"]
[Black "lamomiajunior"]
[Result "1-0"]
[WhiteElo "2494"]
[BlackElo "2734"]
[TimeControl "180+1"]
[EndTime "14:18:39 PDT"]
[Termination "DanylaBagrov won by resignation"]

1. e4 {[%clk 0:03:00.9]} 1... c5 {[%clk 0:02:59.9]} 2. Nf3 {[%clk 0:03:00]} 2...
d6 {[%clk 0:03:00.3]} 3. Bb5+ {[%clk 0:03:00.5]} 3... Nd7 {[%clk 0:03:00.2]} 4.
O-O {[%clk 0:02:59.9]} 4... a6 {[%clk 0:03:00.7]} 5. Bd3 {[%clk 0:02:59.8]} 5...
Ngf6 {[%clk 0:03:00.3]} 6. Re1 {[%clk 0:02:59.2]} 6... e6 {[%clk 0:03:00.8]} 7.
c3 {[%clk 0:02:59.5]} 7... b5 {[%clk 0:03:01.3]} 8. a4 {[%clk 0:02:58.7]} 8...
c4 {[%clk 0:02:47.9]} 9. Bc2 {[%clk 0:02:58.3]} 9... Bb7 {[%clk 0:02:48.6]} 10.
axb5 {[%clk 0:02:39.8]} 10... axb5 {[%clk 0:02:49.5]} 11. Rxa8 {[%clk 0:02:40]}
11... Qxa8 {[%clk 0:02:49.8]} 12. Na3 {[%clk 0:02:40.7]} 12... Bc6 {[%clk
0:02:22.8]} 13. d3 {[%clk 0:02:34.8]} 13... cxd3 {[%clk 0:01:59.3]} 14. Qxd3
{[%clk 0:02:24.4]} 14... Nc5 {[%clk 0:01:48.6]} 15. Qe2 {[%clk 0:02:13.7]} 15...
Qb7 {[%clk 0:01:10.9]} 16. Nd4 {[%clk 0:01:58.9]} 16... Bxe4 {[%clk 0:01:04.8]}
17. Bxe4 {[%clk 0:01:56.6]} 17... Ncxe4 {[%clk 0:01:03.1]} 18. Naxb5 {[%clk
0:01:50.7]} 18... Be7 {[%clk 0:00:59.8]} 19. f3 {[%clk 0:01:26.9]} 19... Nc5
{[%clk 0:00:59]} 20. Bf4 {[%clk 0:01:24.9]} 20... Qb6 {[%clk 0:00:33]} 21. Kh1
{[%clk 0:01:06.5]} 21... O-O {[%clk 0:00:31.7]} 22. c4 {[%clk 0:00:53.9]} 22...
h6 {[%clk 0:00:19.4]} 23. Rd1 {[%clk 0:00:44.6]} 23... Re8 {[%clk 0:00:17.8]}
24. b4 {[%clk 0:00:40.4]} 24... Nb7 {[%clk 0:00:16]} 25. Be3 {[%clk 0:00:39.2]}
25... Qd8 {[%clk 0:00:14.3]} 26. Nc6 {[%clk 0:00:38.4]} 26... Qc8 {[%clk
0:00:12.5]} 27. Nxe7+ {[%clk 0:00:30.3]} 27... Rxe7 {[%clk 0:00:13.4]} 28. Nxd6
{[%clk 0:00:28.5]} 28... Nxd6 {[%clk 0:00:14]} 29. Rxd6 {[%clk 0:00:28.6]} 29...
Qb8 {[%clk 0:00:13.9]} 30. Qd2 {[%clk 0:00:28.5]} 30... Re8 {[%clk 0:00:13.7]}
31. b5 {[%clk 0:00:27]} 31... Qa8 {[%clk 0:00:12.3]} 32. b6 {[%clk 0:00:23]}
32... Qa1+ {[%clk 0:00:12.8]} 33. Qd1 {[%clk 0:00:22.8]} 33... Qc3 {[%clk
0:00:13.3]} 34. Qd3 {[%clk 0:00:13.2]} 34... Qa1+ {[%clk 0:00:10]} 35. Bg1
{[%clk 0:00:13.8]} 35... Qa6 {[%clk 0:00:10.1]} 36. c5 {[%clk 0:00:13.2]} 36...
Qa2 {[%clk 0:00:07.9]} 37. c6 {[%clk 0:00:11.5]} 37... Nd5 {[%clk 0:00:08.4]}
38. b7 {[%clk 0:00:10]} 38... Nf4 {[%clk 0:00:08.2]} 39. Qf1 {[%clk 0:00:08.9]}
39... Qb2 {[%clk 0:00:08.7]} 40. Qf2 {[%clk 0:00:06.9]} 40... Qb5 {[%clk
0:00:07.7]} 41. Qd2 {[%clk 0:00:05.2]} 41... Nd5 {[%clk 0:00:07.5]} 42. Qd4
{[%clk 0:00:02.8]} 42... Qb6 {[%clk 0:00:05.5]} 43. Qxb6 {[%clk 0:00:03.1]} 1-0